bitfinex/quotes_ETHUSD_20240822
["timestamp","ask_amount","ask_price","bid_price","bid_amount"]
[1724318389453,21.5213082,2631.4,2631.3,75.51932073]
[1724318389629,21.5213082,2631.4,2631.3,78.30613587]
[1724318389816,21.5213082,2631.4,2631.3,75.51932073]
[1724318390158,21.5213082,2631.4,2631.3,78.30613587]
[1724318390955,21.5213082,2631.4,2631.3,51.25808887]
[1724318391162,21.5213082,2631.4,2631.3,78.30613587]
[1724318392518,21.5213082,2631.4,2631.3,76.72288599]
[1724318392816,21.5213082,2631.4,2631.3,78.30716087]
[1724318393559,21.5213082,2631.4,2631.3,76.72301519]
[1724318393714,21.5213082,2631.4,2631.3,56.78301519]
[1724318394117,21.5213082,2631.4,2631.3,58.3674428]
[1724318394457,21.5213082,2631.4,2631.3,58.36750292]
[1724318394688,21.5213082,2631.4,2631.3,55.57932073]
[1724318395397,21.5213082,2631.4,2631.3,56.78314938]
[1724318395743,21.5213082,2631.4,2631.3,56.7833137]
[1724318396578,21.5213082,2631.4,2631.3,61.08041213]
[1724318396767,18.8673082,2631.4,2631.3,57.28001213]
[1724318397090,18.8673082,2631.4,2631.3,64.37507247]
[1724318397286,18.8673082,2631.4,2631.3,57.28001213]
[1724318398410,28.6341082,2631.4,2631.3,57.28001213]
[1724318399284,28.6341082,2631.4,2631.3,61.08041213]
[1724318399579,28.6341082,2631.4,2631.3,64.37507247]
[1724318399744,28.6341082,2631.4,2631.3,77.22001213]
[1724318399945,28.6341082,2631.4,2631.3,80.51467247]
[1724318400354,28.6341082,2631.4,2631.3,81.02041213]
[1724318400556,28.6341082,2631.4,2631.3,84.31507247]
[1724318400781,28.6341082,2631.4,2631.3,81.02041213]
[1724318400966,28.6341082,2631.4,2631.3,84.31789655]
[1724318401280,18.8673082,2631.4,2631.3,84.31789655]
[1724318402523,16.2133082,2631.4,2631.3,84.31789655]
[1724318402882,14.3131782,2631.4,2631.3,84.31789655]
[1724318403087,7.81915954,2631.4,2631.3,84.82081213]
[1724318403284,10.7197,2631.7,2631.6,26.3685]
[1724318403612,3.3359,2631.7,2631.6,114.9627415]
[1724318403801,3.3359,2631.7,2631.6,119.29160562]
[1724318403971,3.3359,2631.7,2631.6,129.20403155]
[1724318404175,3.190103,2631.7,2631.6,129.20403155]
[1724318404378,10.53342414,2631.7,2631.6,118.62885828]
[1724318404597,10.53342414,2631.7,2631.6,114.96759206]
[1724318404784,10.53342414,2631.7,2631.6,104.87963206]
[1724318404997,10.53342414,2631.7,2631.6,99.40599962]
[1724318405201,10.53342414,2631.7,2631.6,99.29084207]
[1724318405399,10.53342414,2631.7,2631.6,96.50000665]
[1724318405724,10.53342414,2631.7,2631.6,99.29084207]
[1724318406078,10.53342414,2631.7,2631.6,76.56000665]
[1724318406311,10.53342414,2631.7,2631.6,75.46143992]
[1724318407490,10.53342414,2631.7,2631.6,76.51749848]
[1724318407674,10.53342414,2631.7,2631.6,79.51749848]
[1724318409591,10.53342414,2631.7,2631.6,79.51348452]
[1724318412387,10.53342414,2631.7,2631.6,79.00742596]
[1724318413489,10.53342414,2631.7,2631.6,81.39961124]
[1724318413696,10.53342414,2631.7,2631.6,81.9056698]
[1724318414403,10.53342414,2631.7,2631.6,81.75990921]
[1724318414861,10.53342414,2631.7,2631.6,79.36769587]
[1724318414998,10.53342414,2631.7,2631.6,81.75973114]
[1724318419044,10.53342414,2631.7,2631.6,79.26867049]
[1724318419249,10.53342414,2631.7,2631.6,81.7597602]
[1724318423817,10.53342414,2631.7,2631.6,79.26867049]
[1724318424050,10.53342414,2631.7,2631.6,81.75971483]
[1724318427061,10.53342414,2631.7,2631.6,81.75951937]
[1724318427668,10.53342414,2631.7,2631.6,83.66435351]
[1724318428669,10.53342414,2631.7,2631.6,83.66434717]
[1724318429239,10.53342414,2631.7,2631.6,86.45469014]
[1724318429464,9.48008173,2631.7,2631.6,83.66434717]
[1724318430364,9.48008173,2631.7,2631.6,86.45435877]
[1724318430568,5.55,2631.8,2631.6,86.45435877]
[1724318430895,5.55,2631.8,2631.7,46.16922874]
[1724318431699,5.55,2631.8,2631.7,81.16922874]
[1724318433241,5.55,2631.8,2631.7,81.16922297]
[1724318433638,15.1501,2631.8,2631.7,81.16922297]
[1724318435761,15.1501,2631.8,2631.7,80.66316441]
[1724318437562,5.55,2631.8,2631.7,81.16922297]
[1724318437739,2.896,2631.8,2631.7,84.45585758]
[1724318437941,2.896,2631.8,2631.7,88.25533536]
[1724318438140,2.896,2631.8,2631.7,87.12886912]
[1724318438334,2.896,2631.8,2631.7,88.25511832]
[1724318438543,2.896,2631.8,2631.7,87.12886912]
[1724318438747,2.896,2631.8,2631.7,88.25506592]
[1724318438961,2.896,2631.8,2631.7,89.91820046]
[1724318439344,2.896,2631.8,2631.7,87.12886912]
[1724318439786,2.896,2631.8,2631.7,88.25479539]
[1724318439946,2.896,2631.8,2631.7,85.46573458]
[1724318440519,0.242,2631.8,2631.7,58.56348458]
[1724318440809,0.242,2631.8,2631.7,88.25463459]
[1724318441108,0.242,2631.8,2631.7,89.91776913]
[1724318441618,0.242,2631.8,2631.7,87.12886912]
[1724318442549,0.242,2631.8,2631.7,87.02986346]
[1724318442752,0.242,2631.8,2631.7,87.14749838]
[1724318443258,30.888,2631.9,2631.8,11.77974]
[1724318443608,30.888,2631.9,2631.8,48.88122411]
[1724318443749,30.888,2631.9,2631.8,49.77042541]
[1724318443949,30.888,2631.9,2631.8,84.77042541]
[1724318444269,30.888,2631.9,2631.8,87.55830712]
[1724318444468,28.77600852,2631.9,2631.8,89.22144166]
[1724318445248,28.77600852,2631.9,2631.8,97.02375826]
[1724318445448,25.96027764,2631.9,2631.8,95.94968746]
[1724318445647,23.96027764,2631.9,2631.8,103.62998746]
[1724318446452,21.30627764,2631.9,2631.8,104.00581339]
[1724318448217,19.19554564,2631.9,2631.8,103.67268139]
[1724318449110,19.19554564,2631.9,2631.8,93.99238139]
[1724318449273,18.31914564,2631.9,2631.8,93.99238139]
[1724318449475,17.76585564,2631.9,2631.8,93.43909139]
[1724318449652,16.07133064,2631.9,2631.8,91.74456639]
[1724318450718,5.35229364,2631.9,2631.8,99.74387511]
[1724318451104,11.1,2632.2,2631.9,11.16823]
[1724318451256,11.1,2632.2,2632.0,34.54618]
[1724318451418,11.1,2632.2,2632.0,38.92606225]
[1724318451753,11.1,2632.2,2632.0,77.82443462]
[1724318451932,1.75076,2632.1,2632.0,82.44923718]
[1724318452129,11.1,2632.2,2632.1,25.6649]
[1724318452450,8.0362,2632.2,2632.1,42.86006495]
[1724318452650,7.0362,2632.2,2632.1,50.72868095]
[1724318452829,2.929098,2632.2,2632.1,82.00107895]
[1724318453011,1.921849,2632.2,2632.1,82.32821395]
[1724318453614,4.270249,2632.3,2632.2,37.38485856]
[1724318453814,2.908031,2632.3,2632.2,51.95593443]
[1724318454326,1.008551,2632.3,2632.2,51.95593443]
[1724318454519,1.008551,2632.3,2632.2,50.64251195]
[1724318454721,1e-06,2632.3,2632.2,51.95549163]
[1724318454938,1e-06,2632.3,2632.2,54.95549163]
[1724318455136,1e-06,2632.3,2632.2,53.64251195]
[1724318455333,13.83478609,2632.4,2632.3,15.5765]
[1724318455521,13.83478609,2632.4,2632.3,37.10574269]
[1724318455926,13.83478609,2632.4,2632.3,72.10574269]
[1724318456162,11.93537609,2632.4,2632.3,73.76887723]
[1724318456338,1.91307409,2632.4,2632.3,77.82321579]
[1724318456538,0.58542,2632.7,2632.6,22.56278]
[1724318456739,9.90782,2632.8,2632.7,10.46708]
[1724318456965,9.56452,2632.8,2632.7,63.74638671]
[1724318457168,9.56452,2632.8,2632.7,102.29882193]
[1724318457463,9.56452,2632.8,2632.7,103.96195647]
[1724318457665,9.56452,2632.8,2632.7,119.70547647]
[1724318459051,8.68812,2632.8,2632.7,119.70547647]
[1724318459250,8.68812,2632.8,2632.7,122.08558454]
[1724318459845,6.91052,2632.8,2632.7,122.08558454]
[1724318460557,6.91052,2632.8,2632.7,122.08554503]
[1724318460762,6.91052,2632.8,2632.7,122.08554475]
[1724318461947,6.91052,2632.8,2632.7,120.42241021]
[1724318462171,6.91052,2632.8,2632.7,120.42166391]
[1724318462385,6.91052,2632.8,2632.7,118.04234193]
[1724318462911,16.77472,2632.8,2632.7,103.60758193]
[1724318463066,16.77472,2632.8,2632.7,103.37597594]
[1724318463274,16.77472,2632.8,2632.7,104.96179171]
[1724318464379,6.91052,2632.8,2632.7,106.40650853]
[1724318464574,6.91052,2632.8,2632.7,106.40607582]
[1724318464983,6.91052,2632.8,2632.7,106.55971824]
[1724318465192,6.91052,2632.8,2632.7,104.97411626]
[1724318465504,6.91052,2632.8,2632.7,106.55962928]
[1724318465676,6.91052,2632.8,2632.7,106.55964095]
[1724318466288,6.91052,2632.8,2632.7,104.97411626]
[1724318466495,16.74622,2632.8,2632.7,106.55956337]
[1724318466689,16.74622,2632.8,2632.7,106.55954891]
[1724318467033,16.74622,2632.8,2632.7,106.95607582]
[1724318469313,6.91052,2632.8,2632.7,110.75426666]
[1724318469466,2.47892,2632.8,2632.7,110.75426666]
[1724318469668,2.47892,2632.8,2632.7,104.97411626]
[1724318469872,2.47892,2632.8,2632.7,105.7438604]
[1724318470530,11.74852,2632.8,2632.7,105.7438604]
[1724318470744,11.74852,2632.8,2632.7,106.95575982]
[1724318471043,11.77712,2632.8,2632.7,106.95575982]
[1724318472308,11.77712,2632.8,2632.7,56.45575982]
[1724318472515,9.12312,2632.8,2632.7,106.95575982]
[1724318473427,9.12312,2632.8,2632.7,109.54241809]
[1724318473792,9.12312,2632.8,2632.7,111.82741809]
[1724318475178,30.646,2632.9,2632.8,12.28144856]
[1724318475378,30.646,2632.9,2632.8,70.11575138]
[1724318475803,30.646,2632.9,2632.8,105.11575138]
[1724318476674,30.646,2632.9,2632.8,111.74106314]
[1724318476908,30.646,2632.9,2632.8,110.52888521]
[1724318478330,27.992,2632.9,2632.8,110.52888521]
[1724318478749,27.992,2632.9,2632.8,110.6930802]
[1724318478892,37.2534,2632.9,2632.8,102.62752594]
[1724318479091,37.2534,2632.9,2632.8,91.60331906]
[1724318479417,37.2534,2632.9,2632.8,91.20689399]
[1724318479789,37.2534,2632.9,2632.8,91.30587451]
[1724318480715,37.2534,2632.9,2632.8,90.11621346]
[1724318480929,37.2534,2632.9,2632.8,91.85623193]
[1724318481425,37.2534,2632.9,2632.8,90.66621346]
[1724318481788,37.2534,2632.9,2632.8,92.25229958]
[1724318482527,37.2534,2632.9,2632.8,85.02687558]
[1724318482829,37.2534,2632.9,2632.8,83.12669758]
[1724318483488,37.2534,2632.9,2632.8,68.39663473]
[1724318483691,41.18584067,2632.9,2632.8,56.81855889]
[1724318483937,41.18584067,2632.9,2632.8,39.95834489]
[1724318484417,41.18584067,2632.9,2632.8,39.95836137]
[1724318484740,41.18584067,2632.9,2632.8,43.75659137]
[1724318484888,37.2534,2632.9,2632.8,43.75659137]
[1724318485226,37.2534,2632.9,2632.8,44.55061598]
[1724318485597,37.2534,2632.9,2632.8,47.55061598]
[1724318485822,37.2534,2632.9,2632.8,46.75659137]
[1724318485994,37.2534,2632.9,2632.8,47.55061598]
[1724318486790,37.2534,2632.9,2632.8,52.15296169]
[1724318487205,37.2534,2632.9,2632.8,53.73686797]
[1724318487497,37.2534,2632.9,2632.8,58.32966535]
[1724318487498,34.5994,2632.9,2632.8,58.32966535]
[1724318487800,34.5994,2632.9,2632.8,56.34408907]
[1724318488217,34.5994,2632.9,2632.8,57.12978432]
[1724318488473,34.5994,2632.9,2632.8,58.94278432]
[1724318489095,25.338,2632.9,2632.8,63.15548003]
[1724318489563,25.338,2632.9,2632.8,65.53817157]
[1724318490102,25.338,2632.9,2632.8,61.73994157]
[1724318490753,23.22670994,2632.9,2632.8,61.73994157]
[1724318491053,23.22670994,2632.9,2632.8,59.35725003]
[1724318491264,23.22670994,2632.9,2632.8,61.74263442]
[1724318491422,23.22670994,2632.9,2632.8,59.35725003]
[1724318491619,23.22670994,2632.9,2632.8,61.74309811]
[1724318491921,23.22670994,2632.9,2632.8,61.64410474]
[1724318492330,23.22670994,2632.9,2632.8,59.25825666]
[1724318493162,23.22670994,2632.9,2632.8,61.64458829]
[1724318493458,23.22670994,2632.9,2632.8,59.25825666]
[1724318494405,23.22670994,2632.9,2632.8,61.6451926]
[1724318495203,23.22670994,2632.9,2632.8,59.25825666]
[1724318499256,32.29060994,2632.9,2632.8,61.10499198]
[1724318499408,32.29060994,2632.9,2632.8,58.30170919]
[1724318504639,32.29060994,2632.9,2632.8,53.16198939]
[1724318504859,32.29060994,2632.9,2632.8,91.29139339]
[1724318505015,32.29060994,2632.9,2632.8,88.90221519]
[1724318505216,32.29060994,2632.9,2632.8,86.59098719]
[1724318505217,36.22305061,2632.9,2632.8,86.59098719]
[1724318505418,36.22305061,2632.9,2632.8,5.92125942]
[1724318505657,36.22305061,2632.9,2632.8,7.51205938]
[1724318505816,32.29060994,2632.9,2632.8,12.80062235]
[1724318506230,32.29060994,2632.9,2632.8,13.19351973]
[1724318506457,32.29060994,2632.9,2632.8,11.20234169]
[1724318506861,32.29060994,2632.9,2632.8,13.74351973]
[1724318507164,32.29060994,2632.9,2632.8,3.06379993]
[1724318507165,36.22305061,2632.9,2632.8,3.06379993]
[1724318507332,36.22305061,2632.9,2632.8,1.58742919]
[1724318507532,36.22305061,2632.9,2632.8,6.65547419]
[1724318507733,36.22305061,2632.9,2632.8,5.068045]
[1724318507934,36.22305061,2632.9,2632.8,6.6522987]
[1724318508121,36.22305061,2632.9,2632.8,2.068045]
[1724318508320,36.22305061,2632.9,2632.8,0.79621164]
[1724318508521,36.22305061,2632.9,2632.6,1.49626043]
[1724318508522,9.285,2632.8,2632.6,1.49626043]
[1724318508721,9.285,2632.7,2632.6,1.49626043]
[1724318508951,9.285,2632.7,2632.6,0.7]
[1724318517867,9.285,2632.7,2632.6,3.104077]
[1724318518090,9.285,2632.7,2632.6,6.104077]
[1724318518296,13.75284067,2632.7,2632.6,6.65415455]
[1724318518492,13.75284067,2632.7,2632.6,7.95115455]
[1724318518818,13.75284067,2632.7,2632.6,8.49323631]
[1724318519110,9.8204,2632.7,2632.6,16.09027631]
[1724318519279,9.8204,2632.7,2632.6,16.64027631]
[1724318519911,9.8204,2632.7,2632.6,16.73927018]
[1724318520291,9.8204,2632.7,2632.6,16.64027631]
[1724318520524,9.8204,2632.7,2632.6,15.34327631]
[1724318520688,9.8204,2632.7,2632.6,15.44227106]
[1724318521131,9.8204,2632.7,2632.6,10.452597]
[1724318521941,9.8204,2632.7,2632.6,45.452597]
[1724318522228,9.8204,2632.7,2632.6,46.00267455]
[1724318522760,9.8204,2632.7,2632.6,46.10166868]
[1724318522883,9.8204,2632.7,2632.6,46.64375044]
[1724318523807,9.8204,2632.7,2632.6,50.44227044]
[1724318524002,9.8204,2632.7,2632.6,46.64375044]
[1724318524205,9.81622134,2632.7,2632.6,46.64375044]
[1724318524676,9.81622134,2632.7,2632.6,46.64374876]
[1724318525924,9.81622134,2632.7,2632.6,42.84522876]
[1724318526123,9.81622134,2632.7,2632.6,3.7]
[1724318526428,13.12051447,2632.7,2632.6,3.571101]
[1724318526574,13.12051447,2632.7,2632.6,6.571101]
[1724318527216,9.81622134,2632.7,2632.6,7.12117855]
[1724318528221,9.81622134,2632.7,2632.6,7.66326031]
[1724318530103,9.81622134,2632.7,2632.6,42.66326031]
[1724318530886,9.81622134,2632.7,2632.6,46.46178031]
[1724318532117,9.81622134,2632.7,2632.6,45.91969855]
[1724318533610,9.81622134,2632.7,2632.6,50.26030031]
[1724318533783,9.81622134,2632.7,2632.6,50.81030031]
[1724318533990,33.17340994,2632.9,2632.8,3.79823]
[1724318534325,33.17340994,2632.9,2632.8,22.79870355]
[1724318534500,33.17340994,2632.9,2632.8,27.79693655]
[1724318535527,33.17340994,2632.9,2632.8,17.646988]
[1724318536731,33.17340994,2632.9,2632.8,13.848758]
[1724318536899,37.10585061,2632.9,2632.8,13.848758]
[1724318537304,37.10585061,2632.9,2632.8,5.008651]
[1724318537932,37.10585061,2632.9,2632.8,3.0]
[1724318538133,9.0383,2632.8,2632.6,0.7]
[1724318538427,12.74888506,2632.8,2632.6,0.7]
[1724318538591,9.0383,2632.7,2632.6,0.7]
[1724318538793,9.0383,2632.7,2632.6,6.783216]
[1724318539014,9.0383,2632.7,2632.6,9.783216]
[1724318539430,9.0383,2632.7,2632.6,10.10535255]
[1724318540189,9.0383,2632.7,2632.6,10.20435135]
[1724318540593,9.0383,2632.7,2632.6,9.35630086]
[1724318540787,9.0383,2632.7,2632.6,0.7]
[1724318545932,9.0383,2632.7,2632.6,1.75715931]
[1724318546155,9.0383,2632.7,2632.6,0.7]
[1724318546367,9.0383,2632.7,2632.6,6.501384]
[1724318546539,9.0383,2632.7,2632.6,6.827498]
[1724318548790,9.0383,2632.7,2632.6,11.68317731]
[1724318549136,9.0383,2632.7,2632.6,11.78219359]
[1724318549485,9.0383,2632.7,2632.6,12.57845402]
[1724318549802,32.63860994,2632.9,2632.7,3.79833]
[1724318549945,23.22670994,2632.9,2632.8,10.29239855]
[1724318550145,23.22670994,2632.9,2632.8,8.74992848]
[1724318550398,23.22670994,2632.9,2632.8,26.66208131]
[1724318550619,23.22670994,2632.9,2632.8,35.34915665]
[1724318550823,23.22670994,2632.9,2632.8,35.89915665]
[1724318551113,23.22670994,2632.9,2632.8,36.2974984]
[1724318553384,23.22670994,2632.9,2632.8,71.6776984]
[1724318553778,23.22670994,2632.9,2632.8,67.33738664]
[1724318553983,23.22670994,2632.9,2632.8,63.02407909]
[1724318554305,23.22670994,2632.9,2632.8,59.65222153]
[1724318554510,23.22670994,2632.9,2632.8,60.84581461]
[1724318554696,23.22670994,2632.9,2632.8,59.65222153]
[1724318555084,23.22670994,2632.9,2632.8,63.45045153]
[1724318555280,23.22670994,2632.9,2632.8,65.04332509]
[1724318555619,23.22670994,2632.9,2632.8,65.55840264]
[1724318556182,23.22670994,2632.9,2632.8,66.1004844]
[1724318556664,23.22670994,2632.9,2632.8,65.70096547]
[1724318556823,23.22670994,2632.9,2632.8,53.96792928]
[1724318557321,23.22670994,2632.9,2632.8,55.65193931]
[1724318560024,23.22670994,2632.9,2632.8,56.70909862]
[1724318560228,23.22670994,2632.9,2632.8,56.70898186]
[1724318561343,23.22670994,2632.9,2632.8,56.70900537]
[1724318561649,32.85530994,2632.9,2632.8,56.70900537]
[1724318561842,32.85530994,2632.9,2632.8,56.70902887]
[1724318562044,32.85530994,2632.9,2632.8,8.12330013]
[1724318562372,33.75788289,2632.9,2632.8,6.126798]
[1724318562836,32.85530994,2632.9,2632.8,11.23563945]
[1724318563546,32.85530994,2632.9,2632.8,11.33463068]
[1724318563710,32.85530994,2632.9,2632.8,11.23563945]
[1724318564357,23.22670994,2632.9,2632.8,10.98218731]
[1724318564502,23.22670994,2632.9,2632.8,11.08117854]
[1724318566164,23.22670994,2632.9,2632.8,46.08117854]
[1724318566840,23.22670994,2632.9,2632.8,46.09010412]
[1724318568171,23.22670994,2632.9,2632.8,47.57885786]
[1724318570170,23.22670994,2632.9,2632.8,48.37441175]
[1724318571345,23.22670994,2632.9,2632.8,48.37788158]
[1724318571728,23.22670994,2632.9,2632.8,43.52249227]
[1724318572541,23.22670994,2632.9,2632.8,43.10713838]
[1724318572888,23.22670994,2632.9,2632.8,42.72693838]
[1724318575346,23.22670994,2632.9,2632.8,43.52249227]
[1724318575540,23.22670994,2632.9,2632.8,42.72693838]
[1724318575980,36.54035061,2632.9,2632.8,7.72693838]
[1724318576679,32.60790994,2632.9,2632.8,7.72693838]
[1724318579197,32.60790994,2632.9,2632.8,12.83579982]
[1724318579900,32.60790994,2632.9,2632.8,47.83579982]
[1724318580493,32.60790994,2632.9,2632.8,49.51299982]
[1724318580861,32.60790994,2632.9,2632.8,2.39569427]
[1724318581059,36.54035061,2632.9,2632.8,0.024]
[1724318582700,36.54035061,2632.9,2632.6,0.7]
[1724318582701,9.6046,2632.8,2632.6,0.7]
[1724318582884,10.9016,2632.7,2632.6,0.7]
[1724318583069,14.70767506,2632.7,2632.6,0.7]
[1724318583428,14.70767506,2632.7,2632.0,35.79555389]
[1724318583429,5.10307506,2632.7,2632.3,0.7]
[1724318583632,9.6342,2632.4,2632.0,0.7]
[1724318583845,3.80607506,2632.7,2632.0,0.7]
[1724318583846,1.297,2632.3,2632.0,0.7]
[1724318583967,10.9312,2632.3,2632.0,0.7]
[1724318584167,9.6342,2632.1,2632.0,0.7]
[1724318588954,3.80607506,2632.7,2632.4,0.7]
[1724318588955,9.643,2632.6,2632.4,0.7]
[1724318592857,5.55,2632.8,2632.7,0.7]
[1724318593199,5.55,2632.8,2632.7,7.879947]
[1724318593401,5.55,2632.8,2632.7,10.879947]
[1724318593669,5.55,2632.8,2632.7,45.879947]
[1724318594422,3.7857231,2632.8,2632.7,49.678327]
[1724318594978,1.26022796,2632.8,2632.7,50.19340455]
[1724318595183,1.26022796,2632.8,2632.7,50.74340455]
[1724318595396,1.26022796,2632.8,2632.7,50.228327]
[1724318595569,1.26022796,2632.8,2632.7,46.429947]
[1724318595884,1.26022796,2632.8,2632.7,50.228327]
[1724318596029,1.26022796,2632.8,2632.7,46.429947]
[1724318597066,1.26022796,2632.8,2632.7,50.41400502]
[1724318597926,1.26022796,2632.8,2632.7,50.92908257]
[1724318598585,1.26022796,2632.8,2632.7,51.17109542]
[1724318599974,1.26022796,2632.8,2632.7,50.92908257]
[1724318600364,1.26022796,2632.8,2632.7,51.17111635]
[1724318602677,1.26022796,2632.8,2632.7,54.96949635]
[1724318604109,1.26022796,2632.8,2632.7,51.17111635]
[1724318604310,1.26022796,2632.8,2632.7,50.92908257]
[1724318604472,1.26022796,2632.8,2632.7,50.41400502]
[1724318604808,11.07562796,2632.8,2632.7,7.98996402]
[1724318605004,11.07562796,2632.8,2632.7,1.53687802]
[1724318605005,15.00806863,2632.8,2632.7,1.53687802]
[1724318607982,1.26022796,2632.8,2632.7,4.06475457]
[1724318608187,1.26022796,2632.8,2632.7,14.47531557]
[1724318608512,1.26022796,2632.8,2632.7,4.53687802]
[1724318608813,1.26022796,2632.8,2632.7,7.02761602]
[1724318609320,1.26022796,2632.8,2632.7,4.53687802]
[1724318609497,1.26022796,2632.8,2632.7,8.38373002]
[1724318611617,1.26022796,2632.8,2632.7,12.18211002]
[1724318611798,1.26022796,2632.8,2632.7,13.24718757]
[1724318612168,1.26022796,2632.8,2632.7,48.24718757]
[1724318612514,1.26022796,2632.8,2632.7,48.62332651]
[1724318612709,1.26022796,2632.8,2632.7,48.24718757]
[1724318612917,0.44942592,2632.8,2632.7,53.38943586]
[1724318613722,0.44942592,2632.8,2632.7,54.18498975]
[1724318614019,0.44942592,2632.8,2632.7,53.38943586]
[1724318614318,0.44942592,2632.8,2632.7,54.18498975]
[1724318615298,0.44942592,2632.8,2632.7,54.69290485]
[1724318616989,93.553542,2632.9,2632.8,7.59646]
[1724318617282,93.553542,2632.9,2632.8,45.1540683]
[1724318617723,93.553542,2632.9,2632.8,80.1540683]
[1724318617879,91.9024686,2632.9,2632.8,80.1540683]
[1724318618519,91.9024686,2632.9,2632.8,79.35851441]
[1724318618683,91.9024686,2632.9,2632.8,81.32369236]
[1724318618874,91.9024686,2632.9,2632.8,79.35851441]
[1724318619079,97.4524686,2632.9,2632.8,79.35851441]
[1724318619279,82.93489958,2632.9,2632.8,81.83161369]
[1724318619481,82.81889958,2632.9,2632.8,81.82903339]
[1724318619724,82.81889958,2632.9,2632.8,81.01845906]
[1724318620105,82.00589958,2632.9,2632.8,102.04916106]
[1724318620327,81.67289958,2632.9,2632.8,100.85845706]
[1724318620622,81.43417198,2632.9,2632.8,100.85845706]
[1724318620827,80.99417198,2632.9,2632.8,102.04900696]
[1724318621722,80.99417198,2632.9,2632.8,102.0487043]
[1724318622084,80.99417198,2632.9,2632.8,101.54048462]
[1724318622284,86.54417198,2632.9,2632.8,99.0633322]
[1724318622500,86.54417198,2632.9,2632.8,101.02539857]
[1724318622699,86.54417198,2632.9,2632.8,99.0633322]
[1724318622998,86.54417198,2632.9,2632.8,101.02535973]
[1724318623199,86.54417198,2632.9,2632.8,99.0633322]
[1724318624632,86.31417198,2632.9,2632.8,99.85678054]
[1724318624829,91.86417198,2632.9,2632.8,99.0633322]
[1724318625135,91.48467198,2632.9,2632.8,101.5402743]
[1724318625290,91.48467198,2632.9,2632.8,99.57840975]
[1724318626145,90.50923392,2632.9,2632.8,99.57840975]
[1724318626501,90.50923392,2632.9,2632.8,100.88476918]
[1724318627018,90.50923392,2632.9,2632.8,100.09139435]
[1724318627186,96.05923392,2632.9,2632.8,100.09139435]
[1724318627833,96.05923392,2632.9,2632.8,100.88470076]
[1724318628664,96.05923392,2632.9,2632.8,102.65678566]
[1724318628869,96.05923392,2632.9,2632.8,100.37678566]
[1724318629429,96.05923392,2632.9,2632.8,96.57855566]
[1724318629631,96.05923392,2632.9,2632.8,85.39240825]
[1724318629886,86.41044196,2632.9,2632.8,85.39240825]
[1724318630035,84.65288841,2632.9,2632.8,85.39240825]
[1724318630245,84.65288841,2632.9,2632.8,75.51203825]
[1724318630444,84.65288841,2632.9,2632.8,73.31376925]
[1724318630757,84.65288841,2632.9,2632.8,74.10707566]
[1724318631424,84.65288841,2632.9,2632.8,73.31376925]
[1724318631748,83.81198841,2632.9,2632.8,77.90530566]
[1724318632679,83.81198841,2632.9,2632.8,79.12302577]
[1724318632824,83.81198841,2632.9,2632.8,77.11199925]
[1724318633022,83.40208841,2632.9,2632.8,79.12302644]
[1724318633252,83.40208841,2632.9,2632.8,78.74282644]
[1724318633432,83.40208841,2632.9,2632.8,77.55227654]
[1724318634773,83.40208841,2632.9,2632.8,78.74413485]
[1724318634948,83.40208841,2632.9,2632.8,79.1451501]
[1724318636039,83.02218841,2632.9,2632.8,83.37370009]
[1724318636269,83.02218841,2632.9,2632.8,94.04196345]
[1724318636588,81.48698841,2632.9,2632.8,95.33796345]
[1724318637026,80.76998841,2632.9,2632.8,95.33796345]
[1724318637470,79.83318841,2632.9,2632.8,95.33796345]
[1724318637831,79.08889362,2632.9,2632.8,95.33796345]
[1724318638176,79.08889362,2632.9,2632.8,94.53200744]
[1724318638331,78.15209362,2632.9,2632.8,93.35034163]
[1724318638533,77.92349362,2632.9,2632.8,94.53259996]
[1724318639501,77.92349362,2632.9,2632.8,80.96876996]
[1724318639502,77.38849362,2632.9,2632.8,80.96876996]
[1724318639670,77.38849362,2632.9,2632.8,84.74784731]
[1724318640564,77.38849362,2632.9,2632.8,84.7561522]
[1724318641183,77.38849362,2632.9,2632.8,85.27122975]
[1724318642468,77.38849362,2632.9,2632.8,84.84474002]
[1724318642655,77.06849362,2632.9,2632.8,84.84477587]
[1724318644105,77.06849362,2632.9,2632.8,84.84477489]
[1724318644707,76.67476792,2632.9,2632.8,84.84477489]
[1724318645213,76.35417792,2632.9,2632.8,84.84477489]
[1724318645378,75.56057792,2632.9,2632.8,84.84477489]
[1724318645778,75.56057792,2632.9,2632.8,84.91075992]
[1724318648701,75.56057792,2632.9,2632.8,84.96443443]
[1724318649981,75.22137792,2632.9,2632.8,84.96443443]
[1724318650180,74.18457792,2632.9,2632.8,84.96443443]
[1724318650376,73.61117792,2632.9,2632.8,84.96443443]
[1724318650905,73.40117792,2632.9,2632.8,84.96443443]
[1724318652814,72.93927792,2632.9,2632.8,84.96443443]
[1724318653311,72.93927792,2632.9,2632.8,84.9646014]
[1724318653727,81.96897792,2632.9,2632.8,70.10980752]
[1724318653905,81.96897792,2632.9,2632.8,64.93250925]
[1724318654616,81.77154115,2632.9,2632.8,66.16693012]
[1724318655088,81.77154115,2632.9,2632.8,69.96516012]
[1724318655608,81.77154115,2632.9,2632.8,83.01887112]
[1724318656312,81.77154115,2632.9,2632.8,80.91730112]
[1724318656475,81.77154115,2632.9,2632.8,83.3062451]
[1724318656671,81.77154115,2632.9,2632.8,80.91730112]
[1724318657386,81.77154115,2632.9,2632.8,83.82132265]
[1724318657585,81.77154115,2632.9,2632.8,84.32923775]
[1724318658178,81.77154115,2632.9,2632.8,81.94029377]
[1724318658386,81.77154115,2632.9,2632.8,81.62913177]
[1724318660079,81.77154115,2632.9,2632.8,84.01807575]
[1724318660279,81.77154115,2632.9,2632.8,87.81630575]
[1724318661018,87.32154115,2632.9,2632.8,87.81630575]
[1724318661225,87.32154115,2632.9,2632.8,85.42736177]
[1724318662272,87.32154115,2632.9,2632.8,84.91944667]
[1724318662717,87.32154115,2632.9,2632.8,84.96964078]
[1724318663900,92.87154115,2632.9,2632.8,84.96964078]
[1724318664895,92.87154115,2632.9,2632.8,87.36230678]
[1724318665221,92.87154115,2632.9,2632.8,80.42805478]
[1724318665378,92.87154115,2632.9,2632.8,79.07598978]
[1724318665778,92.87154115,2632.9,2632.8,77.97712778]
[1724318667447,92.87154115,2632.9,2632.8,77.9773691]
[1724318669226,92.87154115,2632.9,2632.8,74.97515674]
[1724318669383,92.87154115,2632.9,2632.8,74.18630977]
[1724318669581,96.80398182,2632.9,2632.8,47.65566022]
[1724318669846,96.80398182,2632.9,2632.8,4.39401395]
[1724318669999,96.80398182,2632.9,2632.8,3.32590825]
[1724318670320,96.80398182,2632.9,2632.8,2.92715073]